fUST/lending_fUST_20260522
["ID","MTS","AMOUNT","RATE_DAILY","PERIOD"]
[422782432,1779383448000,-270.673062,8.493e-05,2]
[422782435,1779383448000,-270.673062,8.493e-05,2]
[422782421,1779383448000,-270.673062,8.493e-05,2]
[422782437,1779383448000,-270.673062,8.493e-05,2]
[422782423,1779383448000,-270.673062,8.493e-05,2]
[422782420,1779383448000,-500.0,8.493e-05,2]
[422782441,1779383448000,-500.0,8.498e-05,2]
[422782445,1779383448000,-500.0,8.498e-05,2]
[422782446,1779383448000,-500.0,8.498e-05,2]
[422782455,1779383448000,-864.0,8.56e-05,2]
[422782443,1779383448000,-500.0,8.498e-05,2]
[422782439,1779383448000,-572.72967465,8.498e-05,2]
[422782453,1779383448000,-4524.7978669,8.511e-05,2]
[422782448,1779383448000,-500.0,8.498e-05,2]
[422782458,1779383448000,-573.22928725,8.643e-05,2]
[422782456,1779383448000,-163.384262,8.59e-05,2]
[422782460,1779383448000,-250.0,8.698e-05,2]
[422782462,1779383448000,-152.0,8.755e-05,7]
[422782468,1779383448000,-271.38325472,8.767e-05,2]
[422782512,1779383448000,-500.0,8.767e-05,2]
[422782478,1779383448000,-500.0,8.767e-05,2]
[422782517,1779383448000,-548.95,8.767e-05,2]
[422782577,1779383448000,-270.673062,8.95e-05,2]
[422782576,1779383448000,-151.0,8.95e-05,2]
[422782579,1779383448000,-270.673062,8.95e-05,2]
[422782581,1779383448000,-270.673062,8.95e-05,2]
[422782583,1779383448000,-270.673062,8.95e-05,2]
[422782593,1779383448000,-183.977709,9.039e-05,2]
[422782585,1779383448000,-152.0,8.988e-05,2]
[422782596,1779383448000,-151.0,9.039e-05,2]
[422782589,1779383448000,-482.14317402,9.039e-05,2]
[422782599,1779383448000,-151.0,9.039e-05,2]
[422782591,1779383448000,-205529.53527991,9.039e-05,2]
[422782587,1779383448000,-500.0,9.038e-05,2]
[422782604,1779383448000,-614.264198,9.039e-05,2]
[422782615,1779383448000,-664.341089,9.039e-05,2]
[422782617,1779383448000,-664.341089,9.039e-05,2]
[422782607,1779383448000,-614.264198,9.039e-05,2]
[422782610,1779383448000,-614.264198,9.039e-05,2]
[422782612,1779383448000,-664.341089,9.039e-05,2]
[422782623,1779383448000,-664.341089,9.039e-05,2]
[422782632,1779383448000,-151.0,9.039e-05,2]
[422782638,1779383448000,-159.881566,9.039e-05,2]
[422782626,1779383448000,-151.0,9.039e-05,2]
[422782635,1779383448000,-151.960296,9.039e-05,2]
[422782570,1779383448000,-4556.34702338,8.95e-05,2]
[422782574,1779383448000,-151.0,8.95e-05,2]
[422782601,1779383448000,-614.264198,9.039e-05,2]
[422782572,1779383448000,-151.0,8.95e-05,2]
[422782568,1779383448000,-580.753,8.94e-05,2]
[422782530,1779383448000,-584.04,8.767e-05,2]
[422782528,1779383448000,-866.44,8.767e-05,2]
[422782515,1779383448000,-527.15,8.767e-05,2]
[422782519,1779383448000,-151.0,8.767e-05,2]
[422782534,1779383448000,-164.406922,8.767e-05,2]
[422782538,1779383448000,-164.406922,8.767e-05,2]
[422782539,1779383448000,-164.406922,8.767e-05,2]
[422782543,1779383448000,-1294.6,8.767e-05,2]
[422782535,1779383448000,-663.1,8.767e-05,2]
[422782541,1779383448000,-500.0,8.767e-05,2]
[422782545,1779383448000,-500.0,8.767e-05,2]
[422782532,1779383448000,-164.406922,8.767e-05,2]
[422782566,1779383448000,-163.384262,8.899e-05,2]
[422782629,1779383448000,-151.0,9.039e-05,2]
[422782565,1779383448000,-161.7158655,8.836e-05,2]
[422782563,1779383448000,-152.0,8.785e-05,7]
[422782547,1779383448000,-515.41,8.767e-05,2]
[422782559,1779383448000,-152.0,8.782e-05,7]
[422782561,1779383448000,-152.0,8.782e-05,7]
[422782556,1779383448000,-759.126,8.772e-05,2]
[422782554,1779383448000,-500.0,8.767e-05,2]
[422782550,1779383448000,-500.0,8.767e-05,2]
[422782548,1779383448000,-1360.11,8.767e-05,2]
[422782552,1779383448000,-500.0,8.767e-05,2]
[422782557,1779383448000,-500.0,8.772e-05,2]
[422782694,1779383449000,-778.74,9.041e-05,2]
[422782693,1779383449000,-500.0,9.041e-05,2]
[422782685,1779383449000,-500.0,9.041e-05,2]
[422782698,1779383449000,-500.0,9.041e-05,2]
[422782696,1779383449000,-500.0,9.041e-05,2]
[422782707,1779383449000,-1827.97,9.041e-05,2]
[422782689,1779383449000,-1144.43,9.041e-05,2]
[422782704,1779383449000,-981.7,9.041e-05,2]
[422782690,1779383449000,-500.0,9.041e-05,2]
[422782687,1779383449000,-1574.45,9.041e-05,2]
[422782682,1779383449000,-556.18,9.041e-05,2]
[422782700,1779383449000,-500.0,9.041e-05,2]
[422782702,1779383449000,-8920.81,9.041e-05,2]
[422782681,1779383449000,-500.0,9.041e-05,2]
[422782663,1779383449000,-270.673062,9.039e-05,2]
[422782667,1779383449000,-500.0,9.041e-05,2]
[422782679,1779383449000,-500.0,9.041e-05,2]
[422782675,1779383449000,-500.0,9.041e-05,2]
[422782665,1779383449000,-954.7167,9.041e-05,2]
[422782672,1779383449000,-500.0,9.041e-05,2]
[422782670,1779383449000,-638.69,9.041e-05,2]
[422782660,1779383449000,-270.673062,9.039e-05,2]
[422782658,1779383449000,-270.673062,9.039e-05,2]
[422782654,1779383449000,-270.673062,9.039e-05,2]
[422782651,1779383449000,-164.406922,9.039e-05,2]
[422782648,1779383449000,-164.406922,9.039e-05,2]
[422782644,1779383449000,-164.406922,9.039e-05,2]
[422782677,1779383449000,-500.0,9.041e-05,2]
[422782641,1779383449000,-164.406922,9.039e-05,2]
[422782708,1779383449000,-456.45302908,9.041e-05,2]
[422782719,1779383449000,-501.55,9.041e-05,2]
[422782768,1779383449000,-2629.23665974,9.3e-05,2]
[422782763,1779383449000,-114140.81931098,9.3e-05,2]
[422782761,1779383449000,-235.72861843,9.251e-05,2]
[422782757,1779383449000,-1728.98646764,9.212e-05,2]
[422782759,1779383449000,-805.54686156,9.231e-05,2]
[422782751,1779383449000,-200.0,9.1e-05,2]
[422782755,1779383449000,-10000.0,9.123e-05,2]
[422782750,1779383449000,-209.53794876,9.079e-05,2]
[422782753,1779383449000,-171.40863612,9.11e-05,2]
[422782744,1779383449000,-500.0,9.041e-05,2]
[422782748,1779383449000,-500.0,9.046e-05,2]
[422782746,1779383449000,-161.4969,9.041e-05,2]
[422782738,1779383449000,-1360.11,9.041e-05,2]
[422782740,1779383449000,-500.0,9.041e-05,2]
[422782742,1779383449000,-500.0,9.041e-05,2]
[422782737,1779383449000,-515.41,9.041e-05,2]
[422782734,1779383449000,-500.0,9.041e-05,2]
[422782732,1779383449000,-1294.6,9.041e-05,2]
[422782731,1779383449000,-500.0,9.041e-05,2]
[422782729,1779383449000,-663.1,9.041e-05,2]
[422782727,1779383449000,-584.04,9.041e-05,2]
[422782717,1779383449000,-1615.55,9.041e-05,2]
[422782715,1779383449000,-548.95,9.041e-05,2]
[422782713,1779383449000,-527.15,9.041e-05,2]
[422782725,1779383449000,-866.44,9.041e-05,2]
[422782723,1779383449000,-500.0,9.041e-05,2]
[422782721,1779383449000,-500.0,9.041e-05,2]
[422782766,1779383449000,-861.376,9.3e-05,2]
[422782711,1779383449000,-500.0,9.041e-05,2]
[422783581,1779384632000,-1536.52375704,6.822e-05,2]
[422783582,1779384632000,-276.36,6.822e-05,2]
[422783587,1779384633000,-163.384264,7.102e-05,2]
[422783586,1779384633000,-1199.71770795,7.046e-05,2]
[422783588,1779384633000,-1200.0,7.145e-05,2]
[422783584,1779384633000,-472.01389959,6.919e-05,2]
[422783583,1779384633000,-3187.11624296,6.822e-05,2]
[422783585,1779384633000,-644.00176127,6.946e-05,2]
[422783609,1779384634000,-300.0,7.564e-05,2]
[422783614,1779384634000,-300.0,7.564e-05,2]
[422783611,1779384634000,-300.0,7.564e-05,2]
[422783612,1779384634000,-300.0,7.564e-05,2]
[422783615,1779384634000,-600.0,7.564e-05,2]
[422783610,1779384634000,-300.0,7.564e-05,2]
[422783613,1779384634000,-300.0,7.564e-05,2]
[422783620,1779384634000,-500.0,7.598e-05,2]
[422783623,1779384634000,-500.0,7.598e-05,2]
[422783625,1779384634000,-226.7066293,7.598e-05,2]
[422783624,1779384634000,-564.71236785,7.598e-05,2]
[422783627,1779384634000,-500.0,7.598e-05,2]
[422783628,1779384634000,-500.0,7.598e-05,2]
[422783626,1779384634000,-500.0,7.598e-05,2]
[422783616,1779384634000,-500.0,7.598e-05,2]
[422783630,1779384634000,-500.0,7.598e-05,2]
[422783621,1779384634000,-500.0,7.598e-05,2]
[422783631,1779384634000,-500.0,7.598e-05,2]
[422783629,1779384634000,-500.0,7.598e-05,2]
[422783622,1779384634000,-489.8521642,7.598e-05,2]
[422783608,1779384634000,-300.0,7.564e-05,2]
[422783593,1779384634000,-300.0,7.245e-05,2]
[422783619,1779384634000,-500.0,7.598e-05,2]
[422783590,1779384634000,-300.0,7.245e-05,2]
[422783592,1779384634000,-300.0,7.245e-05,2]
[422783589,1779384634000,-1755.43365463,7.146e-05,2]
[422783591,1779384634000,-300.0,7.245e-05,2]
[422783596,1779384634000,-2191.79576075,7.346e-05,2]
[422783594,1779384634000,-1854.98106991,7.246e-05,2]
[422783595,1779384634000,-1854.98106991,7.246e-05,2]
[422783599,1779384634000,-2528.61045174,7.546e-05,2]
[422783604,1779384634000,-300.0,7.564e-05,2]
[422783606,1779384634000,-300.0,7.564e-05,2]
[422783605,1779384634000,-300.0,7.564e-05,2]
[422783634,1779384634000,-500.0,7.598e-05,2]
[422783598,1779384634000,-1182.1939982,7.5e-05,2]
[422783600,1779384634000,-300.0,7.564e-05,2]
[422783601,1779384634000,-300.0,7.564e-05,2]
[422783603,1779384634000,-300.0,7.564e-05,2]
[422783602,1779384634000,-300.0,7.564e-05,2]
[422783607,1779384634000,-300.0,7.564e-05,2]
[422783618,1779384634000,-500.0,7.598e-05,2]
[422783617,1779384634000,-500.0,7.598e-05,2]
[422783597,1779384634000,-2311.14960131,7.446e-05,2]
[422783632,1779384634000,-500.0,7.598e-05,2]
[422783664,1779384634000,-679.74565657,8.217e-05,2]
[422783636,1779384634000,-1239.27556262,7.6e-05,2]
[422783659,1779384634000,-679.74565657,8.217e-05,2]
[422783662,1779384634000,-679.74565657,8.217e-05,2]
[422783672,1779384634000,-500.0,8.219e-05,2]
[422783661,1779384634000,-679.74565657,8.217e-05,2]
[422783673,1779384634000,-500.0,8.219e-05,2]
[422783674,1779384634000,-500.0,8.219e-05,2]
[422783663,1779384634000,-679.74565657,8.217e-05,2]
[422783666,1779384634000,-793.8900622,8.218e-05,2]
[422783670,1779384634000,-500.0,8.219e-05,2]
[422783667,1779384634000,-500.0,8.219e-05,2]
[422783669,1779384634000,-634.55,8.219e-05,2]
[422783671,1779384634000,-500.0,8.219e-05,2]
[422783668,1779384634000,-500.0,8.219e-05,2]
[422783675,1779384634000,-437.00635708,8.219e-05,2]
[422783676,1779384634000,-1078.08916142,8.219e-05,2]
[422783678,1779384634000,-500.0,8.219e-05,2]
[422783679,1779384634000,-469.45774087,8.219e-05,2]
[422783677,1779384634000,-27.8644815,8.219e-05,2]
[422783633,1779384634000,-500.0,7.598e-05,2]
[422783656,1779384634000,-663.97642407,8.217e-05,2]
[422783651,1779384634000,-679.74565657,8.217e-05,2]
[422783665,1779384634000,-679.74565657,8.217e-05,2]
[422783654,1779384634000,-679.74565657,8.217e-05,2]
[422783646,1779384634000,-2866.86554799,8.175e-05,2]
[422783650,1779384634000,-679.74565657,8.217e-05,2]
[422783647,1779384634000,-679.74565657,8.217e-05,2]
[422783648,1779384634000,-679.74565657,8.217e-05,2]
[422783635,1779384634000,-599.23215091,7.598e-05,2]
[422783638,1779384634000,-1328.46489417,7.7e-05,2]
[422783639,1779384634000,-2865.42514272,7.778e-05,2]
[422783644,1779384634000,-176.79646388,8e-05,2]
[422783642,1779384634000,-163.0,7.97e-05,2]
[422783641,1779384634000,-1506.84355744,7.9e-05,2]
[422783637,1779384634000,-40692.52439858,7.6e-05,2]
[422783643,1779384634000,-180.0,7.97e-05,2]
[422783640,1779384634000,-1417.6542258,7.8e-05,2]
[422783649,1779384634000,-679.74565657,8.217e-05,2]
[422783658,1779384634000,-679.74565657,8.217e-05,2]
[422783660,1779384634000,-679.74565657,8.217e-05,2]
[422783652,1779384634000,-679.74565657,8.217e-05,2]
[422783657,1779384634000,-679.74565657,8.217e-05,2]
[422783645,1779384634000,-223.91493417,8.037e-05,2]
[422783655,1779384634000,-15.7692325,8.217e-05,2]
[422783653,1779384634000,-679.74565657,8.217e-05,2]
[422783739,1779384639000,-681.4,8.219e-05,2]
[422783744,1779384639000,-1523.31,8.219e-05,2]
[422783745,1779384639000,-500.0,8.219e-05,2]
[422783752,1779384639000,-500.0,8.219e-05,2]
[422783751,1779384639000,-1346.3,8.219e-05,2]
[422783734,1779384639000,-1377.64,8.219e-05,2]
[422783740,1779384639000,-160.39,8.219e-05,2]
[422783738,1779384639000,-500.0,8.219e-05,2]
[422783735,1779384639000,-500.0,8.219e-05,2]
[422783743,1779384639000,-818.08,8.219e-05,2]
[422783750,1779384639000,-722.04,8.219e-05,2]
[422783741,1779384639000,-500.0,8.219e-05,2]
[422783758,1779384639000,-500.0,8.219e-05,2]
[422783742,1779384639000,-7705.54,8.219e-05,2]
[422783749,1779384639000,-500.0,8.219e-05,2]
[422783748,1779384639000,-500.0,8.219e-05,2]
[422783746,1779384639000,-500.0,8.219e-05,2]
[422783754,1779384639000,-500.0,8.219e-05,2]
[422783755,1779384639000,-500.0,8.219e-05,2]
[422783753,1779384639000,-500.0,8.219e-05,2]
[422783756,1779384639000,-500.0,8.219e-05,2]
[422783764,1779384639000,-500.0,8.219e-05,2]
[422783761,1779384639000,-588.21,8.219e-05,2]
[422783727,1779384639000,-500.0,8.219e-05,2]
[422783747,1779384639000,-500.0,8.219e-05,2]
[422783736,1779384639000,-1001.38,8.219e-05,2]
[422783711,1779384639000,-645.68,8.219e-05,2]
[422783737,1779384639000,-500.0,8.219e-05,2]
[422783704,1779384639000,-30.54225913,8.219e-05,2]
[422783706,1779384639000,-500.0,8.219e-05,2]
[422783710,1779384639000,-500.0,8.219e-05,2]
[422783707,1779384639000,-500.0,8.219e-05,2]
[422783708,1779384639000,-558.85,8.219e-05,2]
[422783716,1779384639000,-500.0,8.219e-05,2]
[422783757,1779384639000,-500.0,8.219e-05,2]
[422783714,1779384639000,-599.52,8.219e-05,2]
[422783712,1779384639000,-500.0,8.219e-05,2]
[422783709,1779384639000,-500.0,8.219e-05,2]
[422783713,1779384639000,-1261.1719,8.219e-05,2]
[422783705,1779384639000,-500.0,8.219e-05,2]
[422783733,1779384639000,-500.0,8.219e-05,2]
[422783717,1779384639000,-500.0,8.219e-05,2]
[422783720,1779384639000,-500.0,8.219e-05,2]
[422783721,1779384639000,-500.0,8.219e-05,2]
[422783722,1779384639000,-500.0,8.219e-05,2]
[422783723,1779384639000,-500.0,8.219e-05,2]
[422783725,1779384639000,-500.0,8.219e-05,2]
[422783724,1779384639000,-500.0,8.219e-05,2]
[422783726,1779384639000,-500.0,8.219e-05,2]
[422783731,1779384639000,-500.0,8.219e-05,2]
[422783732,1779384639000,-500.0,8.219e-05,2]
[422783729,1779384639000,-500.0,8.219e-05,2]
[422783730,1779384639000,-500.0,8.219e-05,2]
[422783728,1779384639000,-579.2,8.219e-05,2]
[422783719,1779384639000,-500.0,8.219e-05,2]
[422783762,1779384639000,-500.0,8.219e-05,2]
[422783763,1779384639000,-500.0,8.219e-05,2]
[422783760,1779384639000,-1078.83,8.219e-05,2]
[422783794,1779384639000,-317.129648,8.493e-05,2]
[422783800,1779384639000,-317.129648,8.493e-05,2]
[422783799,1779384639000,-317.129648,8.493e-05,2]
[422783802,1779384639000,-321.950603,8.493e-05,2]
[422783796,1779384639000,-317.129648,8.493e-05,2]
[422783797,1779384639000,-317.129648,8.493e-05,2]
[422783803,1779384639000,-317.129648,8.493e-05,2]
[422783801,1779384639000,-317.129648,8.493e-05,2]
[422783804,1779384639000,-321.950603,8.493e-05,2]
[422783798,1779384639000,-317.129648,8.493e-05,2]
[422783807,1779384639000,-317.129648,8.493e-05,2]
[422783808,1779384639000,-321.950603,8.493e-05,2]
[422783805,1779384639000,-317.129648,8.493e-05,2]
[422783809,1779384639000,-317.129648,8.493e-05,2]
[422783811,1779384639000,-317.129648,8.493e-05,2]
[422783810,1779384639000,-321.950603,8.493e-05,2]
[422783813,1779384639000,-317.129648,8.493e-05,2]
[422783814,1779384639000,-317.129648,8.493e-05,2]
[422783815,1779384639000,-317.129648,8.493e-05,2]
[422783812,1779384639000,-321.950603,8.493e-05,2]
[422783816,1779384639000,-321.950603,8.493e-05,2]
[422783817,1779384639000,-317.129648,8.493e-05,2]
[422783818,1779384639000,-321.950603,8.493e-05,2]
[422783819,1779384639000,-317.129648,8.493e-05,2]
[422783765,1779384639000,-500.0,8.219e-05,2]
[422783795,1779384639000,-317.129648,8.493e-05,2]
[422783793,1779384639000,-317.129648,8.493e-05,2]
[422783806,1779384639000,-321.950603,8.493e-05,2]
[422783780,1779384639000,-500.0,8.493e-05,2]
[422783759,1779384639000,-1133.43,8.219e-05,2]
[422783792,1779384639000,-317.129648,8.493e-05,2]
[422783766,1779384639000,-500.0,8.219e-05,2]
[422783767,1779384639000,-160.48195168,8.219e-05,2]
[422783768,1779384639000,-1596.79153372,8.312e-05,2]
[422783769,1779384639000,-720.0,8.32e-05,2]
[422783776,1779384639000,-500.0,8.493e-05,2]
[422783770,1779384639000,-500.0,8.448e-05,2]
[422783771,1779384639000,-793.89006216,8.464e-05,2]
[422783772,1779384639000,-365.65,8.493e-05,2]
[422783778,1779384639000,-558.85,8.493e-05,2]
[422783773,1779384639000,-426.05,8.493e-05,2]
[422783774,1779384639000,-500.0,8.493e-05,2]
[422783777,1779384639000,-350.1,8.493e-05,2]
[422783790,1779384639000,-317.129648,8.493e-05,2]
[422783788,1779384639000,-317.129648,8.493e-05,2]
[422783775,1779384639000,-1542.96,8.493e-05,2]
[422783791,1779384639000,-317.129648,8.493e-05,2]
[422783786,1779384639000,-317.129648,8.493e-05,2]
[422783785,1779384639000,-317.129648,8.493e-05,2]
[422783784,1779384639000,-317.129648,8.493e-05,2]
[422783789,1779384639000,-317.129648,8.493e-05,2]
[422783783,1779384639000,-317.129648,8.493e-05,2]
[422783781,1779384639000,-192.69,8.493e-05,2]
[422783782,1779384639000,-317.129648,8.493e-05,2]
[422783779,1779384639000,-1261.1719,8.493e-05,2]
[422783787,1779384639000,-317.129648,8.493e-05,2]
[422783867,1779384640000,-317.129648,8.493e-05,2]
[422783863,1779384640000,-317.129648,8.493e-05,2]
[422783861,1779384640000,-317.129648,8.493e-05,2]
[422783857,1779384640000,-317.129648,8.493e-05,2]
[422783858,1779384640000,-321.950603,8.493e-05,2]
[422783856,1779384640000,-321.950603,8.493e-05,2]
[422783859,1779384640000,-317.129648,8.493e-05,2]
[422783865,1779384640000,-317.129648,8.493e-05,2]
[422783864,1779384640000,-317.129648,8.493e-05,2]
[422783855,1779384640000,-317.129648,8.493e-05,2]
[422783862,1779384640000,-321.950603,8.493e-05,2]
[422783866,1779384640000,-321.950603,8.493e-05,2]
[422783860,1779384640000,-321.950603,8.493e-05,2]
[422783880,1779384640000,-321.950603,8.493e-05,2]
[422783872,1779384640000,-321.950603,8.493e-05,2]
[422783874,1779384640000,-321.950603,8.493e-05,2]
[422783878,1779384640000,-321.950603,8.493e-05,2]
[422783870,1779384640000,-321.950603,8.493e-05,2]
[422783869,1779384640000,-317.129648,8.493e-05,2]
[422783876,1779384640000,-321.950603,8.493e-05,2]
[422783871,1779384640000,-317.129648,8.493e-05,2]
[422783873,1779384640000,-317.129648,8.493e-05,2]
[422783875,1779384640000,-317.129648,8.493e-05,2]
[422783879,1779384640000,-317.129648,8.493e-05,2]
[422783877,1779384640000,-317.129648,8.493e-05,2]
[422783848,1779384640000,-321.950603,8.493e-05,2]
[422783868,1779384640000,-321.950603,8.493e-05,2]
[422783851,1779384640000,-317.129648,8.493e-05,2]
[422783820,1779384640000,-321.950603,8.493e-05,2]
[422783842,1779384640000,-317.129648,8.493e-05,2]
[422783882,1779384640000,-321.950603,8.493e-05,2]
[422783826,1779384640000,-317.129648,8.493e-05,2]
[422783822,1779384640000,-321.950603,8.493e-05,2]
[422783823,1779384640000,-317.129648,8.493e-05,2]
[422783821,1779384640000,-317.129648,8.493e-05,2]
[422783824,1779384640000,-317.129648,8.493e-05,2]
[422783825,1779384640000,-317.129648,8.493e-05,2]
[422783832,1779384640000,-317.129648,8.493e-05,2]
[422783840,1779384640000,-321.950603,8.493e-05,2]
[422783838,1779384640000,-321.950603,8.493e-05,2]
[422783829,1779384640000,-321.950603,8.493e-05,2]
[422783836,1779384640000,-317.129648,8.493e-05,2]
[422783839,1779384640000,-317.129648,8.493e-05,2]
[422783834,1779384640000,-321.950603,8.493e-05,2]
[422783841,1779384640000,-317.129648,8.493e-05,2]
[422783828,1779384640000,-317.129648,8.493e-05,2]
[422783831,1779384640000,-321.950603,8.493e-05,2]
[422783830,1779384640000,-317.129648,8.493e-05,2]
[422783827,1779384640000,-321.950603,8.493e-05,2]
[422783849,1779384640000,-317.129648,8.493e-05,2]
[422783847,1779384640000,-317.129648,8.493e-05,2]
[422783853,1779384640000,-317.129648,8.493e-05,2]
[422783843,1779384640000,-317.129648,8.493e-05,2]
[422783852,1779384640000,-321.950603,8.493e-05,2]
[422783854,1779384640000,-321.950603,8.493e-05,2]
[422783844,1779384640000,-317.129648,8.493e-05,2]
[422783850,1779384640000,-321.950603,8.493e-05,2]
[422783845,1779384640000,-317.129648,8.493e-05,2]
[422783892,1779384640000,-500.0,8.493e-05,2]
[422783925,1779384640000,-1078.83,8.493e-05,2]
[422783884,1779384640000,-321.950603,8.493e-05,2]
[422783923,1779384640000,-1133.43,8.493e-05,2]
[422783929,1779384640000,-500.0,8.493e-05,2]
[422783927,1779384640000,-500.0,8.493e-05,2]
[422783956,1779384640000,-1542.96,8.767e-05,2]
[422783934,1779384640000,-198.9049572,8.493e-05,2]
[422783931,1779384640000,-301.0950428,8.493e-05,2]
[422783939,1779384640000,-500.0,8.498e-05,2]
[422783944,1779384640000,-163.384264,8.597e-05,2]
[422783935,1779384640000,-500.0,8.493e-05,2]
[422783940,1779384640000,-500.0,8.498e-05,2]
[422783938,1779384640000,-500.0,8.498e-05,2]
[422783941,1779384640000,-500.0,8.498e-05,2]
[422783942,1779384640000,-500.0,8.498e-05,2]
[422783945,1779384640000,-176.79646382,8.6e-05,2]
[422783943,1779384640000,-3202.23983371,8.572e-05,2]
[422783947,1779384640000,-152.0,8.764e-05,7]
[422783958,1779384640000,-558.85,8.767e-05,2]
[422783946,1779384640000,-793.89006216,8.709e-05,2]
[422783957,1779384640000,-500.0,8.767e-05,2]
[422783948,1779384640000,-152.0,8.764e-05,7]
[422783949,1779384640000,-151.0,8.764e-05,2]
[422783953,1779384640000,-151.0,8.767e-05,2]
[422783952,1779384640000,-151.0,8.767e-05,2]
[422783951,1779384640000,-151.0,8.764e-05,2]
[422783950,1779384640000,-151.0,8.764e-05,2]
[422783954,1779384640000,-151.0,8.767e-05,2]
[422783955,1779384640000,-500.0,8.767e-05,2]
[422783920,1779384640000,-500.0,8.493e-05,2]
[422783922,1779384640000,-500.0,8.493e-05,2]
[422783886,1779384640000,-269.973505,8.493e-05,2]
[422783916,1779384640000,-500.0,8.493e-05,2]
[422783893,1779384640000,-1377.64,8.493e-05,2]
[422783883,1779384640000,-321.950603,8.493e-05,2]
[422783885,1779384640000,-500.0,8.493e-05,2]
[422783881,1779384640000,-317.129648,8.493e-05,2]
[422783891,1779384640000,-500.0,8.493e-05,2]
[422783887,1779384640000,-500.0,8.493e-05,2]
[422783890,1779384640000,-500.0,8.493e-05,2]
[422783910,1779384640000,-1346.3,8.493e-05,2]
[422783888,1779384640000,-611.78,8.493e-05,2]
[422783896,1779384640000,-500.0,8.493e-05,2]
[422783895,1779384640000,-1001.38,8.493e-05,2]
[422783899,1779384640000,-500.0,8.493e-05,2]
[422783897,1779384640000,-500.0,8.493e-05,2]
[422783889,1779384640000,-288.66,8.493e-05,2]
[422783900,1779384640000,-7705.54,8.493e-05,2]
[422783894,1779384640000,-500.0,8.493e-05,2]
[422783914,1779384640000,-500.0,8.493e-05,2]
[422783909,1779384640000,-722.04,8.493e-05,2]
[422783912,1779384640000,-500.0,8.493e-05,2]
[422783907,1779384640000,-500.0,8.493e-05,2]
[422783906,1779384640000,-500.0,8.493e-05,2]
[422783918,1779384640000,-500.0,8.493e-05,2]
[422783904,1779384640000,-500.0,8.493e-05,2]
[422783905,1779384640000,-500.0,8.493e-05,2]
[422783902,1779384640000,-1523.31,8.493e-05,2]
[422783901,1779384640000,-818.08,8.493e-05,2]
[422783898,1779384640000,-681.4,8.493e-05,2]
[422783903,1779384640000,-500.0,8.493e-05,2]
[422784005,1779384641000,-500.0,8.767e-05,2]
[422783999,1779384641000,-500.0,8.767e-05,2]
[422784000,1779384641000,-500.0,8.767e-05,2]
[422784009,1779384641000,-500.0,8.767e-05,2]
[422784008,1779384641000,-500.0,8.767e-05,2]
[422783989,1779384641000,-1001.38,8.767e-05,2]
[422783996,1779384641000,-1523.31,8.767e-05,2]
[422783994,1779384641000,-7705.54,8.767e-05,2]
[422783998,1779384641000,-500.0,8.767e-05,2]
[422783995,1779384641000,-818.08,8.767e-05,2]
[422783997,1779384641000,-500.0,8.767e-05,2]
[422784004,1779384641000,-500.0,8.767e-05,2]
[422784021,1779384641000,-1686.02765752,8.865e-05,2]
[422784002,1779384641000,-722.04,8.767e-05,2]
[422784001,1779384641000,-500.0,8.767e-05,2]
[422784003,1779384641000,-1346.3,8.767e-05,2]
[422784007,1779384641000,-500.0,8.767e-05,2]
[422784012,1779384641000,-500.0,8.767e-05,2]
[422784013,1779384641000,-500.0,8.767e-05,2]
[422784014,1779384641000,-500.0,8.767e-05,2]
[422784010,1779384641000,-1133.43,8.767e-05,2]
[422784015,1779384641000,-500.0,8.767e-05,2]
[422784018,1779384641000,-500.0,8.772e-05,2]
[422784020,1779384641000,-161.7158655,8.817e-05,2]
[422784019,1779384641000,-607.301,8.8e-05,2]
[422783990,1779384641000,-500.0,8.767e-05,2]
[422784006,1779384641000,-500.0,8.767e-05,2]
[422783988,1779384641000,-296.27,8.767e-05,2]
[422783976,1779384641000,-500.0,8.767e-05,2]
[422783991,1779384641000,-500.0,8.767e-05,2]
[422784011,1779384641000,-1078.83,8.767e-05,2]
[422783959,1779384641000,-1261.1719,8.767e-05,2]